{"text_format":"1","workbook":"xlsx","n_sheets":2,"sheets":["Seite1","Seite 2"],"not_rendered":{"charts":0,"images":1,"macros":1,"external_links":0,"defined_names":3,"comments":0,"pivot_tables":0},"unopened":[],"bounds":{"document_bytes":16777216,"sheet_cells":100000,"rows_first":2000,"rows_last":500,"rows_between":2000,"halvings":0,"cell_chars":16384,"cell_head_chars":4096},"cells_cut":0,"cells_raw":0,"read":"whole","date_system":"1900"}

{"sheet":"Seite1","index":0,"n_rows":57,"n_cols":44,"rows_kept":57,"cut":false,"hidden":false,"merged":[[49,1,49,5],[48,2,48,13],[50,3,50,12],[49,6,49,14],[31,41,31,49],[31,27,31,38],[50,1,50,2],[45,12,45,13],[47,2,47,4],[45,0,45,5],[45,6,45,11],[46,1,46,6],[44,0,44,51],[47,15,47,19],[42,37,42,49],[42,27,42,33],[51,1,51,2],[56,6,56,14],[51,3,51,12],[55,8,55,14],[54,8,54,14],[53,8,53,14],[52,1,52,7],[56,15,56,19],[53,15,53,19],[48,15,48,19],[51,15,51,19],[52,15,52,19],[54,15,54,19],[55,15,55,19],[50,15,50,19],[0,1,1,50],[5,15,8,36],[15,41,15,49],[23,2,26,48],[18,2,18,24],[18,27,18,47],[20,1,20,7],[9,2,9,48],[21,2,21,24],[21,27,21,49],[14,1,14,24],[15,2,15,24],[15,32,15,33],[17,1,17,7],[10,2,12,49],[28,17,28,20],[33,27,33,49],[28,44,28,49],[35,26,37,50],[18,61,30,63],[28,32,28,36],[28,38,28,39]]}
[]
[]
[]
[]
[null,null,null,null,null,null,null,null,null,null,null,null,null,null,null,null,null,null,null,null,null,null,null,null,null,null,null,null,null,null,null,null,null,null,null,null,null,null,null,"Konsistorium"]
[null,null,"2","2025",null,null,null,null,null,null,null,null,null,null,null,"Antrag auf Erstattung von Reisekosten\nfür mehrere eintägige Dienstreisen",null,null,null,null,null,null,null,null,null,null,null,null,null,null,null,null,null,null,null,null,null,null,null,"Georgenkirchstraße 69/70"]
[null,null,null,null,null,null,null,null,null,null,null,null,null,null,null,null,null,null,null,null,null,null,null,null,null,null,null,null,null,null,null,null,null,null,null,null,null,null,null,"10249 Berlin"]
[null,null,null,null,null,null,null,null,null,null,null,null,null,null,null,null,null,null,null,null,null,null,null,null,null,null,null,null,null,null,null,null,null,null,null,null,null,null,null,"Tel. 030 / 243 44 - 0"]
[null,null,null,null,null,null,null,null,null,null,null,null,null,null,null,null,null,null,null,null,null,null,null,null,null,null,null,null,null,null,null,null,null,null,null,null,null,null,null,"Fax 030 / 243 44 500"]
[]
[null,null,"Dieses Formular ist ausschließlich bei eintägigen Dienstreisen zu verwenden, wenn weder Mitnahmeentschädigung \nnoch sonst. Auslagen (Tagungskostenbeiträge) abzurechnen sind und keine Verpflegung von Amts wegen gestellt wurde."]
[]
[]
[]
[null,"Name, Vorname, Amtsbezeichnung",null,null,null,null,null,null,null,null,null,null,null,null,null,null,null,null,null,null,null,null,null,null,null,null,null,null,null,null,null,null,null,null,null,null,null,null,"Telefon"]
[null,null,null,null,null,null,null,null,null,null,null,null,null,null,null,null,null,null,null,null,null,null,null,null,null,null,null,null,null,null,null,null,null,null,null,null,null,null,"dienstl."]
[]
[null,"Dienststelle",null,null,null,null,null,null,null,null,null,null,null,null,null,null,null,null,null,null,null,null,null,null,null,null,"Dienstort"]
[]
[]
[null,"Wohnort",null,null,null,null,null,null,null,null,null,null,null,null,null,null,null,null,null,null,null,null,null,null,null,null,"abweichender Familienwohnort"]
[]
[]
[null,null,"Ich beantrage Erstattung der mir durch die umseitig erläuterten Dienstreisen entstandenen Reisekosten."]
[]
[]
[]
[null,"Vorschuss"]
[null,null,"Ich habe einen Vorschuss in Höhe von ",null,null,null,null,null,null,null,null,null,null,null,null,null,null,0,null,null,null,"EUR",null,null,null,null,"Ich bitte um ",null,null,null,null,"X","Überweisung"]
[null,null,"erhalten.",null,null,null,null,null,null,null,null,null,null,null,null,null,null,null,null,null,null,null,null,null,null,null,"(soweit nicht bekannt)"]
[null,"Tagegeld",null,null,null,null,null,null,null,null,null,null,null,null,null,null,null,null,null,null,null,null,null,null,null,null,null,"IBAN",null,null,null,null,null,null,null,null,null,null,null,null,null,"BIC"]
[]
[null,null,null,"auf den auszuzahlenden Anteil wird verzichtet",null,null,null,null,null,null,null,null,null,null,null,null,null,null,null,null,null,null,null,null,null,null,null,"Geldinstitut"]
[]
[]
[null,null,"unentgeltliche Unterkunft wurde gestellt",null,null,null,null,null,null,null,null,null,null,null,null,null,null,null,null,null,null,"ja",null,"X","nein",null,"Ich versichere die Vollständigkeit und Richtigkeit meiner Angaben.\nDie gewählte Beförderungsart und der gewählte Fahrtweg sind die wirtschaftlichste Lösung im Sinne des § 2 der Rechtsverordnung über die Erstattung von Reisekosten in der EKBO."]
[]
[null,null,"unentgeltliche Verpflegung wurde gestellt",null,null,null,null,null,null,null,null,null,null,null,null,null,null,null,null,null,null,"ja",null,"X","nein"]
[]
[]
[]
[]
[null,null,null,null,null,null,null,null,null,null,null,null,null,null,null,null,null,null,null,null,null,null,null,null,null,null,null,"(Ort, Datum)",null,null,null,null,null,null,null,null,null,"(Unterschrift)"]
[]
["Dieser Teil wird von der Reisekostenstelle bearbeitet"]
["Berechnung",null,null,null,null,null,"(Erstattung für",null,null,null,null,null,{"$f":"'Seite 2'!BA38","v":0},null,"eintägige Dienstreisen)"]
[null,"Fahrtkosten",null,null,null,null,null,null,null,null,null,null,null,null,null,null,null,null,null,null,null,null,null,null,null,null,null,"Rechtsträger: ______________ ",null,null,null,null,null,null,null,null,null,null,null,null,"Rechnungsjahr:_________"]
[null,null,"Bahn",null,null,null,null,null,null,null,null,null,null,null,null,{"$f":"'Seite 2'!AE34","v":0},null,null,null,null,null,null,null,null,null,null,null,"SB:________ Gl. D.:_________OBJ:___________ "]
[null,null,"km-Entschädigung à 0,30 €",null,null,null,null,null,null,null,null,null,null,null,null,{"$f":"'Seite 2'!AH34","v":0},null,null,null,null,null,null,null,null,null,null,null,"GRP:________ U-Konto:______"]
[null,"Tagegeld",null,null,null,null,{"$f":"IF($C$33=\"x\",\"(Verzicht erklärt)\",IF('Seite 2'!BA39>0,\"(Teilverzicht)\",\"\"))","v":""},null,null,null,null,null,null,null,null,null,null,null,null,null,null,null,null,null,null,null,null,"Ggf. zusätzlicher Buchungstext (max. 25 Stellen):"]
[null,{"$f":"IF(C33=\"x\",0,'Seite 2'!BA36)+IF(C33=\"x\",0,'Seite 2'!BA37)","v":0},null,"Tage à 14 €",null,null,null,null,null,null,null,null,null,null,null,{"$f":"IF($C$33=\"x\",0,B51*12)","v":0},null,null,null,null,null,null,null,null,null,null,null,"__________________________________"]
[]
[null,"Nebenkosten",null,null,null,null,null,null,null,null,null,null,null,null,null,{"$f":"'Seite 2'!AK34","v":0}]
[null,null,null,null,null,null,null,null,"Summe",null,null,null,null,null,null,{"$f":"SUM(P48:S53)","v":0},null,null,null,null,null,null,null,null,null,null,null,"(Ort, Datum)",null,null,null,null,null,null,null,null,null,"(Unterschrift)"]
[null,null,null,null,null,null,null,null,"./. Vorschuss",null,null,null,null,null,null,{"$f":"R29","v":0}]
[null,null,null,null,null,null,null,null,"./. Sonst. Abzug",null,null,null,null,null,null,0,null,null,null,null,null,null,null,null,null,null,null,"BS:____________ ",null,null,null,null,null,null,"ZW:_____________ ",null,null,null,null,null,null,null,null,"erfasst:___________"]
[null,null,null,null,null,null,"Auszahlungsbetrag",null,null,null,null,null,null,null,null,{"$f":"P54-P55-P56","v":0},null,null,null,null,null,null,null,null,null,null,null,"Buchungsdatum: ___________________"]

{"sheet":"Seite 2","index":1,"n_rows":39,"n_cols":56,"rows_kept":39,"cut":false,"hidden":false,"merged":[[31,24,31,29],[33,24,33,29],[36,49,36,51],[35,52,35,53],[36,52,36,53],[36,0,36,41],[32,33,32,35],[33,30,33,32],[31,30,31,32],[28,36,28,38],[35,49,35,51],[28,33,28,35],[29,33,29,35],[29,36,29,38],[28,40,28,42],[33,36,33,38],[28,50,28,51],[29,50,29,51],[29,40,29,42],[31,33,31,35],[31,36,31,38],[31,40,31,42],[33,33,33,35],[33,40,33,42],[13,36,13,38],[14,33,14,35],[14,36,14,38],[23,50,23,51],[24,50,24,51],[25,50,25,51],[26,50,26,51],[27,33,27,35],[27,36,27,38],[27,50,27,51],[17,50,17,51],[18,50,18,51],[19,50,19,51],[20,50,20,51],[21,50,21,51],[22,50,22,51],[17,36,17,38],[20,36,20,38],[22,36,22,38],[25,36,25,38],[15,33,15,35],[15,36,15,38],[16,36,16,38],[18,36,18,38],[3,18,3,21],[3,22,3,27],[4,20,9,21],[4,26,4,27],[10,18,10,19],[10,20,10,21],[10,22,10,23],[10,24,10,25],[10,30,10,32],[9,30,9,32],[3,30,8,32],[5,26,9,26],[5,27,9,27],[7,29,9,29],[3,28,6,29],[7,28,9,28],[10,33,10,35],[10,36,10,38],[11,33,11,35],[11,36,11,38],[12,36,12,38],[11,1,11,3],[11,6,11,7],[11,16,11,17],[11,18,11,19],[11,20,11,21],[11,22,11,23],[11,24,11,25],[11,30,11,32],[10,16,10,17],[12,1,12,3],[12,6,12,7],[12,16,12,17],[12,18,12,19],[12,20,12,21],[12,22,12,23],[12,24,12,25],[12,30,12,32],[10,8,10,15],[10,1,10,3],[12,33,12,35],[13,1,13,3],[13,6,13,7],[13,16,13,17],[13,18,13,19],[13,20,13,21],[13,22,13,23],[13,24,13,25],[13,30,13,32],[13,33,13,35],[14,30,14,32],[14,8,14,15],[14,20,14,21],[14,22,14,23],[14,24,14,25],[14,18,14,19],[15,24,15,25],[15,1,15,3],[15,6,15,7],[15,16,15,17],[15,18,15,19],[15,8,15,15],[14,1,14,3],[14,6,14,7],[15,30,15,32],[15,20,15,21],[15,22,15,23],[19,36,19,38],[16,18,16,19],[17,24,17,25],[17,1,17,3],[17,6,17,7],[17,16,17,17],[17,18,17,19],[17,8,17,15],[16,1,16,3],[16,6,16,7],[16,16,16,17],[19,8,19,15],[18,8,18,15],[17,30,17,32],[17,33,17,35],[18,18,18,19],[16,20,16,21],[16,22,16,23],[16,24,16,25],[16,33,16,35],[16,30,16,32],[17,20,17,21],[17,22,17,23],[18,30,18,32],[20,24,20,25],[20,33,20,35],[18,1,18,3],[18,6,18,7],[18,16,18,17],[19,24,19,25],[19,1,19,3],[19,6,19,7],[19,16,19,17],[20,8,20,15],[19,30,19,32],[19,33,19,35],[20,18,20,19],[19,20,19,21],[19,22,19,23],[20,30,20,32],[20,20,20,21],[20,22,20,23],[20,1,20,3],[20,6,20,7],[20,16,20,17],[19,18,19,19],[22,20,22,21],[22,22,22,23],[22,24,22,25],[22,33,22,35],[23,18,23,19],[23,8,23,15],[22,8,22,15],[22,18,22,19],[21,36,21,38],[21,24,21,25],[21,16,21,17],[21,18,21,19],[21,8,21,15],[21,20,21,21],[21,22,21,23],[24,24,24,25],[24,33,24,35],[22,1,22,3],[22,6,22,7],[22,16,22,17],[23,36,23,38],[23,24,23,25],[23,1,23,3],[23,6,23,7],[23,16,23,17],[24,8,24,15],[23,30,23,32],[23,33,23,35],[24,18,24,19],[24,36,24,38],[23,20,23,21],[23,22,23,23],[24,30,24,32],[24,20,24,21],[24,22,24,23],[24,1,24,3],[24,6,24,7],[24,16,24,17],[22,30,22,32],[25,18,25,19],[25,8,25,15],[25,33,25,35],[26,18,26,19],[26,36,26,38],[25,20,25,21],[25,22,25,23],[26,30,26,32],[26,20,26,21],[26,22,26,23],[26,24,26,25],[26,33,26,35],[26,16,26,17],[29,1,29,3],[29,6,29,7],[29,16,29,17],[29,18,29,19],[29,8,29,15],[27,20,27,21],[28,1,28,3],[28,6,28,7],[28,16,28,17],[28,8,28,15],[27,18,27,19],[11,8,11,15],[12,8,12,15],[13,8,13,15],[10,6,10,7],[16,8,16,15],[27,1,27,3],[27,6,27,7],[27,16,27,17],[26,8,26,15],[27,8,27,15],[25,1,25,3],[25,6,25,7],[25,16,25,17],[26,1,26,3],[26,6,26,7],[21,1,21,3],[21,6,21,7],[14,16,14,17],[29,22,29,23],[28,18,28,19],[29,24,29,25],[28,24,28,25],[28,20,28,21],[28,22,28,23],[17,40,17,42],[18,40,18,42],[19,40,19,42],[20,40,20,42],[29,30,29,32],[28,30,28,32],[25,30,25,32],[29,20,29,21],[27,30,27,32],[27,24,27,25],[27,22,27,23],[25,24,25,25],[21,30,21,32],[21,33,21,35],[18,20,18,21],[18,22,18,23],[18,24,18,25],[18,33,18,35],[1,50,1,52],[1,55,1,57],[1,0,1,42],[3,50,8,51],[3,0,9,0],[4,8,9,15],[3,36,8,38],[9,36,9,38],[3,33,8,35],[4,22,9,23],[3,39,9,39],[3,40,8,42],[9,40,9,42],[3,1,3,3],[4,1,9,3],[4,6,9,7],[4,16,9,17],[3,4,3,17],[4,18,9,19],[4,4,4,5],[5,5,9,5],[5,4,9,4],[9,33,9,35],[4,24,9,25],[38,52,38,53],[21,40,21,42],[25,40,25,42],[10,50,10,51],[13,40,13,42],[14,40,14,42],[15,40,15,42],[26,40,26,42],[27,40,27,42],[16,40,16,42],[10,40,10,42],[11,40,11,42],[12,40,12,42],[22,40,22,42],[23,40,23,42],[24,40,24,42],[13,50,13,51],[14,50,14,51],[15,50,15,51],[16,50,16,51],[37,52,37,53],[11,50,11,51],[12,50,12,51]]}
[]
["Reiseerläuterungen für mehrere eintägige Dienstreisen",null,null,null,null,null,null,null,null,null,null,null,null,null,null,null,null,null,null,null,null,null,null,null,null,null,null,null,null,null,null,null,null,null,null,null,null,null,null,null,null,null,null,null,null,null,null,null,null,"8h",0.33333333333333331,null,null,null,"14h",0.58333333333333337]
[]
["lfd. Nr.",null,null,null,"Hinfahrt",null,null,null,null,null,null,null,null,null,null,null,null,null,"Dienstgeschäft",null,null,null,"Rückfahrt",null,null,null,null,null,"Ver-\nkehrs-\nmittel",null,"Fahrtkosten\n(§ 4 BRKG)",null,null,"Wegstrecken-\nentschä-digung\n(§ 5 BRKG)",null,null,"Neben-kosten\n(§ 10 BRKG)",null,null,"Verzicht Tagegeld*","Tagegeld\n\n> 8h = 12 €\n",null,null,null,null,null,null,null,null,null,"Abwesenheit"]
[null,"Datum",null,null,"von",null,"Abfahrt\n\n(hh:mm)",null,"nach\n\n(mehrere Geschäftsorte in der Reihenfolge der Anfahrt aufzählen) ",null,null,null,null,null,null,null,"Ankunft\n\n(hh:mm)",null,"Beginn\n\n(hh:mm)",null,"Ende\n\n(hh:mm)",null,"Abfahrt\n\n(hh:mm)",null,"Ankunft\n\n(hh:mm)",null,"nach"]
[null,null,null,null,"Wohnung*","Dienststelle*",null,null,null,null,null,null,null,null,null,null,null,null,null,null,null,null,null,null,null,null,"Wohnung*","Dienststelle*"]
[]
[null,null,null,null,null,null,null,null,null,null,null,null,null,null,null,null,null,null,null,null,null,null,null,null,null,null,null,null,"ÖPNV*","PKW *"]
[]
[null,null,null,null,null,null,null,null,null,null,null,null,null,null,null,null,null,null,null,null,null,null,null,null,null,null,null,null,null,null,"in €",null,null,"km",null,null,"in €",null,null,null,"in €"]
[1,null,null,null,null,null,null,null,null,null,null,null,null,null,null,null,null,null,null,null,null,null,null,null,null,null,null,null,null,null,null,null,null,null,null,null,null,null,null,null,{"$f":"IF(G11=\"\",0,IF(AN11<>\"x\",IF(AY11>$BD$2,12,IF(AY11>$AY$2,12,0)),0))","v":0},null,null,null,null,null,null,null,null,null,{"$f":"Y11-G11","v":"00:00:00"}]
[{"$f":"A11+1","v":2},null,null,null,null,null,null,null,null,null,null,null,null,null,null,null,null,null,null,null,null,null,null,null,null,null,null,null,null,null,null,null,null,null,null,null,null,null,null,null,{"$f":"IF(G12=\"\",0,IF(AN12<>\"x\",IF(AY12>$BD$2,12,IF(AY12>$AY$2,12,0)),0))","v":0},null,null,null,null,null,null,null,null,null,{"$f":"Y12-G12","v":"00:00:00"}]
[{"$f":"A12+1","v":3},null,null,null,null,null,null,null,null,null,null,null,null,null,null,null,null,null,null,null,null,null,null,null,null,null,null,null,null,null,null,null,null,null,null,null,null,null,null,null,0,null,null,null,null,null,null,null,null,null,"00:00:00"]
[4,null,null,null,null,null,null,null,null,null,null,null,null,null,null,null,null,null,null,null,null,null,null,null,null,null,null,null,null,null,null,null,null,null,null,null,null,null,null,null,0,null,null,null,null,null,null,null,null,null,"00:00:00"]
[5,null,null,null,null,null,null,null,null,null,null,null,null,null,null,null,null,null,null,null,null,null,null,null,null,null,null,null,null,null,null,null,null,null,null,null,null,null,null,null,0,null,null,null,null,null,null,null,null,null,"00:00:00"]
[6,null,null,null,null,null,null,null,null,null,null,null,null,null,null,null,null,null,null,null,null,null,null,null,null,null,null,null,null,null,null,null,null,null,null,null,null,null,null,null,0,null,null,null,null,null,null,null,null,null,"00:00:00"]
[7,null,null,null,null,null,null,null,null,null,null,null,null,null,null,null,null,null,null,null,null,null,null,null,null,null,null,null,null,null,null,null,null,null,null,null,null,null,null,null,0,null,null,null,null,null,null,null,null,null,"00:00:00"]
[8,null,null,null,null,null,null,null,null,null,null,null,null,null,null,null,null,null,null,null,null,null,null,null,null,null,null,null,null,null,null,null,null,null,null,null,null,null,null,null,0,null,null,null,null,null,null,null,null,null,"00:00:00"]
[9,null,null,null,null,null,null,null,null,null,null,null,null,null,null,null,null,null,null,null,null,null,null,null,null,null,null,null,null,null,null,null,null,null,null,null,null,null,null,null,0,null,null,null,null,null,null,null,null,null,"00:00:00"]
[10,null,null,null,null,null,null,null,null,null,null,null,null,null,null,null,null,null,null,null,null,null,null,null,null,null,null,null,null,null,null,null,null,null,null,null,null,null,null,null,0,null,null,null,null,null,null,null,null,null,"00:00:00"]
[11,null,null,null,null,null,null,null,null,null,null,null,null,null,null,null,null,null,null,null,null,null,null,null,null,null,null,null,null,null,null,null,null,null,null,null,null,null,null,null,0,null,null,null,null,null,null,null,null,null,"00:00:00"]
[12,null,null,null,null,null,null,null,null,null,null,null,null,null,null,null,null,null,null,null,null,null,null,null,null,null,null,null,null,null,null,null,null,null,null,null,null,null,null,null,0,null,null,null,null,null,null,null,null,null,"00:00:00"]
[13,null,null,null,null,null,null,null,null,null,null,null,null,null,null,null,null,null,null,null,null,null,null,null,null,null,null,null,null,null,null,null,null,null,null,null,null,null,null,null,0,null,null,null,null,null,null,null,null,null,"00:00:00"]
[14,null,null,null,null,null,null,null,null,null,null,null,null,null,null,null,null,null,null,null,null,null,null,null,null,null,null,null,null,null,null,null,null,null,null,null,null,null,null,null,0,null,null,null,null,null,null,null,null,null,"00:00:00"]
[15,null,null,null,null,null,null,null,null,null,null,null,null,null,null,null,null,null,null,null,null,null,null,null,null,null,null,null,null,null,null,null,null,null,null,null,null,null,null,null,0,null,null,null,null,null,null,null,null,null,{"$f":"Y25-G25","v":"00:00:00"}]
[16,null,null,null,null,null,null,null,null,null,null,null,null,null,null,null,null,null,null,null,null,null,null,null,null,null,null,null,null,null,null,null,null,null,null,null,null,null,null,null,0,null,null,null,null,null,null,null,null,null,"00:00:00"]
[17,null,null,null,null,null,null,null,null,null,null,null,null,null,null,null,null,null,null,null,null,null,null,null,null,null,null,null,null,null,null,null,null,null,null,null,null,null,null,null,0,null,null,null,null,null,null,null,null,null,"00:00:00"]
[18,null,null,null,null,null,null,null,null,null,null,null,null,null,null,null,null,null,null,null,null,null,null,null,null,null,null,null,null,null,null,null,null,null,null,null,null,null,null,null,0,null,null,null,null,null,null,null,null,null,"00:00:00"]
[19,null,null,null,null,null,null,null,null,null,null,null,null,null,null,null,null,null,null,null,null,null,null,null,null,null,null,null,null,null,null,null,null,null,null,null,null,null,null,null,0,null,null,null,null,null,null,null,null,null,"00:00:00"]
[20,null,null,null,null,null,null,null,null,null,null,null,null,null,null,null,null,null,null,null,null,null,null,null,null,null,null,null,null,null,null,null,null,null,null,null,null,null,null,null,0,null,null,null,null,null,null,null,null,null,"00:00:00"]
[null,"* bitte mit X markieren"]
[null,"Erläuterungen einer Dienstreise bitte unter Angabe der lfd. Nr. auf gesondertem Blatt.",null,null,null,null,null,null,null,null,null,null,null,null,null,null,null,null,null,null,null,null,null,null,"Summe",null,null,null,null,null,{"$f":"SUM(AE11:AG30)","v":0},null,null,{"$f":"SUM(AH11:AJ30)","v":0},null,null,{"$f":"SUM(AK11:AM30)","v":0},null,null,null,{"$f":"SUM(AO11:AQ30)","v":0}]
[null,"Belege bitte auf gesondertem Blatt mit Hinweis auf lfd. Nr. der Dienstreise aufkleben",null,null,null,null,null,null,null,null,null,null,null,null,null,null,null,null,null,null,null,null,null,null,null,null,null,null,null,null,null,null,null,{"$f":"\" x 0,30 €\"","v":" x 0,30 €"}]
[null,null,null,null,null,null,null,null,null,null,null,null,null,null,null,null,null,null,null,null,null,null,null,null,"zu zahlen",null,null,null,null,null,{"$f":"AE32","v":0},null,null,{"$f":"0.3*AH32","v":0},null,null,{"$f":"AK32","v":0},null,null,null,{"$f":"AO32","v":0}]
[]
[null,null,null,null,null,null,null,null,null,null,null,null,null,null,null,null,null,null,null,null,null,null,null,null,null,null,null,null,null,null,null,null,null,null,null,null,null,null,null,null,null,null,null,null,null,null,null,null,null,"Anzahl 12",null,null,{"$f":"COUNTIF($AO$11:$AR$30,12)","v":0}]
[null,null,null,null,null,null,null,null,null,null,null,null,null,null,null,null,null,null,null,null,null,null,null,null,null,null,null,null,null,null,null,null,null,null,null,null,null,null,null,null,null,null,null,null,null,null,null,null,null,"Anzahl 6",null,null,{"$f":"COUNTIF($AO$11:$AR$30,6)","v":0}]
[null,null,null,null,null,null,null,null,null,null,null,null,null,null,null,null,null,null,null,null,null,null,null,null,null,null,null,null,null,null,null,null,null,null,null,null,null,null,null,null,null,null,null,null,null,null,null,null,null,"Anzahl DR",null,null,{"$f":"20-COUNTBLANK(G11:G30)","v":0}]
[null,null,null,null,null,null,null,null,null,null,null,null,null,null,null,null,null,null,null,null,null,null,null,null,null,null,null,null,null,null,null,null,null,null,null,null,null,null,null,null,null,null,null,null,null,null,null,null,null,"TG-Verzicht",null,null,{"$f":"20-COUNTBLANK(AN11:AN30)","v":0}]